[Event "Prague Festival-Masters 2022"]
[Site "Prague"]
[Date "2022.06.09"]
[Round "2.5"]
[White "Anton Guijarro, David"]
[Black "Vidit, Santosh Gujrathi"]
[Result "1/2-1/2"]
[ECO "C43"]
[WhiteElo "2691"]
[BlackElo "2723"]
[Annotator "TA"]
[PlyCount "33"]
[EventDate "2022.06.07"]
[EventType "tourn"]
[EventCountry "CZE"]
[SourceTitle "playchess.com"]
[Source "ChessBase"]
[SourceQuality "1"]
[TimeControl "40/5400+30:1800+30"]

{[%evp 9,33,0,0,0,0,0,0,0,0,0,0,0,16,6,10,0,0,0,0,0,0,0,0,0,0,0]} 1. e4 {[%emt 0:00:06] Edouard,Romain} e5 {[%emt 0:00:19]} 2. Nf3 {[%emt 0:00:13]} Nf6 {[%emt 0:00:11][%cal Bg8f6,Bf6e4,Be4f2,Bf2h1][%mdl 32]} 3. d4 {[%emt 0:01:08]} Nxe4 {[%emt 0:00:08]} 4. dxe5 {[%emt 0:00:30]} Bc5 {[%emt 0:00:19]} 5. Bc4 {[%emt 0:00:58]} Nxf2 {[%emt 0:00:36] The position is equal.} (5... Bxf2+ $2 6. Kf1 $16) 6. Bxf7+ $1 {[%emt 0:00:41][%mdl 64] [#] Decoy. C43: Petroff Defence: 3 d4.} Kxf7 {[%emt 0:00:07]} 7. Qd5+ {[%emt 0:00:08]} Kg6 {[%emt 0:00:17] And now ...d6 would win.} 8. Qxc5 {[%emt 0:00:41]} Nxh1 {[%emt 0:00:07]} 9. Nc3 {[%emt 0:01:28][%cal Bb1c3,Bc3d5,Bd5f4][%mdl 32] Strongly threatening Nd5.} h6 {[%emt 0:00:28]} ({Don't take} 9... d5 10. Nxd5 h6 11. Qc4 $16) 10. Qc4 {[%emt 0:01:56] Black must now prevent Nd5.} Nc6 $5 {[%emt 0:00:43][%mdl 4] An interesting side line.} 11. Nd5 {[%emt 0:17:42][%mdl 1024] White has compensation.} d6 {[%emt 0:02:26]} (11... Kh7 $2 {[#]} 12. Nf6+ $1 {[%mdl 512]} Qxf6 13. exf6 Re8+ 14. Kf1 $18) 12. Nf4+ {[%emt 0:31:02]} Kh7 {[%emt 0:00:10]} 13. Qe4+ {[%emt 0:00:23]} Kg8 {[%emt 0:00:07] ...Qf8 is the strong threat.} 14. Qd5+ {[%emt 0:00:10]} Kh7 {[%emt 0:00:07]} 15. Qe4+ {[%emt 0:00:10]} Kg8 {[%emt 0:00:06] Threatens to win with ...Qf8.} 16. Qd5+ {[%emt 0:00:04]} Kh7 {[%emt 0:00:05] [#]} 17. Qe4+ $146 {[%emt 0:00:05] A balanced but interesting game.  Weighted Error Value: White=0.01 (flawless) /Black=0.03 (flawless)} ({Predecessor:} 17. Qd3+) 1/2-1/2

[Event "Prague Festival-Masters 2022"]
[Site "Prague"]
[Date "2022.06.10"]
[Round "3.1"]
[White "Le, Quang Liem"]
[Black "Navara, David"]
[Result "1-0"]
[ECO "D38"]
[WhiteElo "2709"]
[BlackElo "2682"]
[Annotator "TA"]
[PlyCount "95"]
[EventDate "2022.06.07"]
[EventType "tourn"]
[EventCountry "CZE"]
[SourceTitle "playchess.com"]
[Source "ChessBase"]
[SourceQuality "1"]
[TimeControl "40/5400+30:1800+30"]

{[%evp 11,94,8,4,11,14,22,10,12,12,16,9,10,13,10,16,22,28,11,28,30,32,29,35,24,27,29,38,39,39,21,31,36,32,37,32,22,39,4,15,13,46,52,60,53,47,0,0,0,0,0,40,24,43,50,498,485,717,695,629,621,831,755,930,927,919,903,916,916,896,273,884,183,854,864,1001,976,977,960,828,826,761,773,5420,2810,29999]} 1. Nf3 {[%emt 0:00:06]} d5 {[%emt 0:00:07]} 2. d4 {[%emt 0:00:13]} Nf6 {[%emt 0:00:04]} 3. c4 {[%emt 0:00:10]} e6 {[%emt 0:00:05]} 4. Nc3 {[%emt 0:00:11]} Bb4 {[%emt 0:00:07]} 5. Qa4+ {[%emt 0:00:41]} Nc6 {[%emt 0:00:06]} 6. e3 {[%emt 0:00:08]} (6. a3 Bxc3+ 7. bxc3 Bd7 8. cxd5 exd5 9. Bg5 h6 10. Bh4 O-O 11. e3 Re8 12. Qc2 g5 13. Bg3 Ne4 14. Nd2 Bf5 15. Nxe4 Bxe4 16. Qd1 Qd7 17. h4 g4 18. h5 Kh7 19. Rh4 Rg8 20. Be2 Bf5 21. c4 Na5 22. cxd5 Qxd5 {1-0 (40) Le,Q (2709)-Navara,D (2700) chess24.com INT 2022}) 6... O-O {[%emt 0:00:07]} 7. Qc2 {[%emt 0:00:19] D38: Queen's Gambit Declined: Ragozin Defence (4 Nf3 Bb4).} Re8 {[%emt 0:00:10]} 8. Bd2 {[%emt 0:00:18]} Bf8 {[%emt 0:00:22] 8...Bf8 is better than 8...a6.} 9. a3 {[%emt 0:00:30] The position is equal.} e5 {[%emt 0:00:59]} 10. dxe5 {[%emt 0:00:15]} Nxe5 {[%emt 0:00:06]} 11. cxd5 {[%emt 0:00:11]} Nxd5 {[%emt 0:00:10]} 12. Nxe5 {[%emt 0:01:15]} Rxe5 {[%emt 0:00:08]} 13. e4 {[%emt 0:00:15]} Nxc3 {[%emt 0:20:24]} 14. Bxc3 {[%emt 0:00:08]} Re8 {[%emt 0:15:13]} 15. Bd3 {[%emt 0:00:47] [#]} Bd6 $146 {[%emt 0:03:28]} ({Predecessor:} 15... Qg5 16. O-O Bd6 17. Rae1 Bf4 18. e5 Qh5 19. g3 Bh3 20. Be2 Qg5 21. Kh1 Rad8 22. Bd3 Qh5 23. Be2 Qg5 24. Bd3 Qh5 {½-½ (24) Fier,A (2580)-Swayams,M (2447) Llucmajor 2018}) 16. O-O-O {[%emt 0:05:36][%cal Oe4e5] e5! is the strong threat.} Qg5+ {[%emt 0:00:49]} 17. Kb1 {[%emt 0:00:10][%cal Oe4e5]} Be5 {[%emt 0:00:42]} 18. h4 {[%emt 0:19:29]} Qf6 {[%emt 0:00:56]} 19. Bxe5 {[%emt 0:00:09]} Qxe5 {[%emt 0:00:20]} 20. Qc1 {[%emt 0:01:04]} Be6 {[%emt 0:13:50]} 21. f4 {[%emt 0:00:32]} Qa5 {[%emt 0:00:15]} 22. Bc2 {[%emt 0:02:22]} Qb5 {[%emt 0:09:31]} 23. Qe3 {[%emt 0:04:31]} Rad8 {[%emt 0:07:52]} 24. Qg3 {[%emt 0:09:13] Black must now prevent Rxd8.} f5 $1 {[%emt 0:08:49]} (24... Qc4 25. b3 Qc5 26. f5 Rxd1+ 27. Rxd1 $16) 25. Qg5 {[%emt 0:16:31][%csl LRd8,LRf5]} h6 {[%emt 0:05:59]} 26. Qxd8 {[%emt 0:00:44]} Rxd8 {[%emt 0:00:06]} 27. Rxd8+ {[%emt 0:00:09]} Kf7 {[%emt 0:00:16]} 28. exf5 {[%emt 0:03:52]} (28. Ka1 $1 $14 {feels stronger.}) 28... Bxf5 $11 {[%emt 0:00:20]} 29. Rc1 {[%emt 0:01:54]} c6 {[%emt 0:01:45]} 30. g3 {[%emt 0:03:08]} Be6 {[%emt 0:07:02]} 31. Re1 {[%emt 0:04:36]} Qa5 {[%emt 0:03:54]} 32. Rdd1 {[%emt 0:00:34] The board is on fire.} Qc5 {[%emt 0:00:38][%mdl 8192] [#] This costs Black the game.} (32... Bf5 $1 $14) 33. Re5 $1 $18 {[%emt 0:03:39]} Qf2 {[%emt 0:00:50]} (33... Qf8 $142 34. Bb3 Bxb3) 34. Rde1 {[%emt 0:00:22]} Bg4 {[%emt 0:01:22]} 35. R1e3 {[%emt 0:04:04]} Qf1+ {[%emt 0:00:32] [#]} 36. Ka2 $1 {[%emt 0:00:15]} Kf6 {[%emt 0:00:35]} 37. f5 {[%emt 0:01:29] And now Re6+ would win.} Bf3 {[%emt 0:00:29]} 38. Re6+ {[%emt 0:01:24]} Kf7 {[%emt 0:00:02]} 39. Re7+ {[%emt 0:00:09]} Kf8 {[%emt 0:00:52]} 40. Re8+ {[%emt 0:00:00]} Kf7 {[%emt 0:00:00]} 41. R3e7+ {[%emt 0:02:08]} Kf6 {[%emt 0:00:09]} 42. Re1 {[%emt 0:00:10][%cal Re8f8]} Qc4+ {[%emt 0:00:47]} 43. Bb3 {[%emt 0:07:35] White wants to mate with Rf8+.} Qc5 {[%emt 0:00:12] Prevents Rf8+.} 44. R8e6+ {[%emt 0:01:27]} Kxf5 {[%emt 0:00:14]} 45. Rf1 {[%emt 0:00:06]} Kg4 {[%emt 0:01:01]} 46. Rg6+ {[%emt 0:00:08]} Kh5 {[%emt 0:00:42]} 47. Rxg7 {[%emt 0:00:16][%cal Rb3f7]} Bd5 {[%emt 0:00:16]} 48. Rf5# {[%emt 0:41:17] Weighted Error Value: White=0.04 (flawless) /Black=0.59} 1-0

[Event "Prague Festival-Masters 2022"]
[Site "Prague"]
[Date "2022.06.10"]
[Round "3.2"]
[White "Harikrishna, Pentala"]
[Black "Shankland, Sam"]
[Result "1/2-1/2"]
[ECO "D85"]
[WhiteElo "2705"]
[BlackElo "2718"]
[Annotator "TA"]
[PlyCount "64"]
[EventDate "2022.06.07"]
[EventType "tourn"]
[EventCountry "CZE"]
[SourceTitle "playchess.com"]
[Source "ChessBase"]
[SourceQuality "1"]
[TimeControl "40/5400+30:1800+30"]

{[%evp 15,64,9,18,0,8,0,0,0,0,10,6,4,27,8,11,0,41,0,0,0,0,0,6,0,10,0,16,3,0,-10,-16,-17,-8,-3,0,0,0,0,0,0,0,0,0,0,0,0,0,0,0,0,0]} 1. d4 {[%emt 0:00:05]} Nf6 {[%emt 0:00:15]} 2. c4 {[%emt 0:00:06]} g6 {[%emt 0:00:05]} 3. Nc3 {[%emt 0:00:05]} d5 {[%emt 0:00:05]} 4. cxd5 {[%emt 0:00:04]} Nxd5 {[%emt 0:00:04]} 5. e4 {[%emt 0:00:12]} Nxc3 {[%emt 0:00:04]} 6. bxc3 {[%emt 0:00:08]} Bg7 {[%emt 0:00:03]} 7. Qa4+ {[%emt 0:00:14] 7.Nf3 is a critical line.} Nd7 {[%emt 0:00:16]} 8. Nf3 {[%emt 0:00:36]} O-O {[%emt 0:00:06]} 9. Be2 {[%emt 0:02:58] D85: Exchange Grünfeld: Unusual White 7th moves and lines with 7 Nf3.} Nb6 {[%emt 0:01:35]} 10. Qb4 {[%emt 0:00:11]} Qd6 {[%emt 0:00:52] [#]} 11. Be3 $146 {[%emt 0:00:21]} ({Predecessor:} 11. O-O Bd7 12. Be3 Qxb4 13. cxb4 Bc6 14. Nd2 f5 15. f3 Rfd8 16. b5 Be8 17. Nb3 {½-½ (36) Yu,Y (2763)-Wei,Y (2721) Khanty-Mansiysk 2019}) 11... Qxb4 {[%emt 0:01:35]} 12. cxb4 {[%emt 0:00:16]} Bd7 {[%emt 0:00:06]} 13. Rc1 {[%emt 0:09:54]} Rfc8 {[%emt 0:03:20]} 14. O-O {[%emt 0:04:13]} a6 {[%emt 0:15:31]} 15. Rfe1 {[%emt 0:13:54]} Bb5 {[%emt 0:03:01]} 16. Nd2 {[%emt 0:11:44][%cal Bf3d2,Bd2b3,Bb3d4][%mdl 32]} c6 {[%emt 0:16:53] The position is equal.} 17. Nb3 {[%emt 0:01:53]} Rd8 {[%emt 0:01:52]} 18. d5 {[%emt 0:17:56]} Nd7 {[%emt 0:11:32]} 19. dxc6 {[%emt 0:02:49]} bxc6 {[%emt 0:06:35]} 20. h3 {[%emt 0:06:17]} e6 {[%emt 0:08:08]} 21. Nd4 {[%emt 0:05:51]} Ne5 {[%emt 0:01:35]} 22. Bxb5 {[%emt 0:04:17]} cxb5 {[%emt 0:01:58]} 23. Nc6 {[%emt 0:00:09]} Nxc6 {[%emt 0:04:54]} 24. Rxc6 {[%emt 0:00:07]} Bf8 {[%emt 0:03:30]} 25. a3 {[%emt 0:03:11]} Rd3 {[%emt 0:03:27]} 26. Rec1 {[%emt 0:05:22]} Rxa3 {[%emt 0:01:43]} 27. Rc8 {[%emt 0:02:10]} Rxc8 {[%emt 0:00:05]} 28. Rxc8 {[%emt 0:00:04] [#] White threatens Bh6 and mate.} Kg7 {[%emt 0:00:07] Against Bh6+. Threatens to win with ...Ra1+.} 29. Bd4+ {[%emt 0:01:14]} f6 {[%emt 0:00:05]} 30. Rc7+ {[%emt 0:00:52]} Kg8 {[%emt 0:01:21]} 31. Rc8 {[%emt 0:00:33] Bc5 is the strong threat.} Kf7 {[%emt 0:00:35]} 32. Rc7+ {[%emt 0:00:05]} Kg8 {[%emt 0:00:04] An uneventful encounter.  Weighted Error Value: White=0.07 (flawless) /Black=0.05 (flawless)} 1/2-1/2

[Event "Prague Festival-Masters 2022"]
[Site "Prague"]
[Date "2022.06.10"]
[Round "3.3"]
[White "Nguyen, Thai Dai Van"]
[Black "Anton Guijarro, David"]
[Result "1-0"]
[ECO "D45"]
[WhiteElo "2612"]
[BlackElo "2691"]
[Annotator "TA"]
[PlyCount "83"]
[EventDate "2022.06.07"]
[EventType "tourn"]
[EventCountry "CZE"]
[SourceTitle "playchess.com"]
[Source "ChessBase"]
[SourceQuality "1"]
[TimeControl "40/5400+30:1800+30"]

{[%evp 19,83,0,5,18,14,17,7,4,15,21,21,30,25,0,68,58,71,0,0,0,25,17,17,16,25,25,25,14,20,15,61,21,98,99,277,268,272,274,276,272,272,272,266,255,268,276,292,289,291,291,299,305,312,310,468,407,399,390,434,406,562,562,552,552,29978,29979]} 1. Nf3 {[%emt 0:00:19]} d5 {[%emt 0:00:33]} 2. d4 {[%emt 0:00:14]} Nf6 {[%emt 0:00:45]} 3. c4 {[%emt 0:00:15]} e6 {[%emt 0:00:25]} 4. Nc3 {[%emt 0:00:18]} c6 {[%emt 0:00:34]} 5. e3 {[%emt 0:03:28]} Nbd7 {[%emt 0:00:26]} 6. Qc2 {[%emt 0:00:18]} Bd6 {[%emt 0:00:33]} 7. b3 {[%emt 0:01:27]} O-O {[%emt 0:00:43]} 8. Be2 {[%emt 0:01:16]} b6 {[%emt 0:02:34]} 9. O-O {[%emt 0:00:14]} Bb7 {[%emt 0:00:07]} 10. Bb2 {[%emt 0:00:25]} Rc8 {[%emt 0:00:48]} 11. Rad1 {[%emt 0:04:43] 11.Rad1 is better than 11.e4. D45: Semi-Slav: 5 e3.} c5 {[%emt 0:02:03]} 12. dxc5 {[%emt 0:17:26]} Nxc5 {[%emt 0:00:49][%cal Bd7c5,Bc5e4,Be4c3][%mdl 32]} 13. cxd5 {[%emt 0:00:29][%cal Bc4d5,Bd5e6,Be6f7][%mdl 32] The position is equal.} Nce4 {[%emt 0:01:58] [#]} 14. dxe6 $5 $146 {[%emt 0:16:07][%mdl 8] An interesting novelty.} ({Predecessor:} 14. Qd3 Nxc3 15. Bxc3 Nxd5 16. Bb2 Qe7 17. Qd4 f6 18. Bc4 f5 19. Qh4 Qxh4 20. Nxh4 {½-½ (34) Sethuraman,S (2613)-Cheparinov,I (2664) Sitges 2021}) 14... Nxc3 $1 {[%emt 0:00:54]} 15. Bxc3 {[%emt 0:00:32] Threatens to win with Ng5.} Ne4 {[%emt 0:02:03] Prevents Ng5.} 16. Bc4 {[%emt 0:08:59]} b5 {[%emt 0:51:46]} (16... Nxc3 $11 17. Qxc3 Bxf3 18. gxf3 (18. exf7+ $2 Kh8 $19) 18... Qg5+ 19. Kh1 Qh5) 17. exf7+ $14 {[%emt 0:05:21]} Kh8 {[%emt 0:00:04] [#]} 18. Be5 {[%emt 0:04:32]} bxc4 $11 {[%emt 0:03:00]} 19. Rd4 $1 {[%emt 0:00:04]} ({But not} 19. Bxd6 $2 Nxd6 20. bxc4 Bxf3 21. gxf3 Qg5+ 22. Kh1 Qf6 $19) 19... Qe7 {[%emt 0:15:02]} 20. Rxe4 {[%emt 0:06:24]} Bxe4 {[%emt 0:00:05]} 21. Qxe4 $40 {[%emt 0:00:08][%mdl 128] And now h4 would win. White mounts an attack. Really sharp!} c3 {[%emt 0:00:21]} 22. h4 {[%emt 0:02:16][%cal Of3g5]} Bxe5 {[%emt 0:02:02]} 23. Nxe5 {[%emt 0:00:10][%cal Oe5g6] Strongly threatening Ng6+!} Qd6 {[%emt 0:00:21] Inhibits Ng6+. ...c2 is the strong threat.} 24. Nc4 {[%emt 0:11:59]} Qa6 {[%emt 0:04:26]} (24... Qf6 $11) 25. Qe7 {[%emt 0:03:46]} Qg6 {[%emt 0:03:42]} (25... Rcd8 $1 $11 {keeps the balance.}) 26. Nd6 $16 {[%emt 0:01:58]} Rcd8 {[%emt 0:03:44] Loses the game.} (26... Ra8 $16 {was called for.}) 27. Ne8 $18 {[%emt 0:00:12][%cal Re7f8]} Qxf7 {[%emt 0:00:25]} 28. Qxd8 {[%emt 0:00:06][%cal Oe8d6] Hoping for Nd6!} Rxe8 {[%emt 0:00:03][%mdl 4096] Endgame KQR-KQR} 29. Qd3 {[%emt 0:01:19]} Rc8 {[%emt 0:00:29]} 30. Rc1 {[%emt 0:00:27]} Qc7 {[%emt 0:00:47]} 31. Rc2 {[%emt 0:02:18]} h6 {[%emt 0:00:12]} 32. g3 {[%emt 0:01:43]} Qa5 {[%emt 0:02:08]} 33. Qd4 {[%emt 0:03:05]} Rc6 {[%emt 0:00:09]} 34. e4 {[%emt 0:01:12][%cal Be3e4,Be4e5][%mdl 32]} Qc7 {[%emt 0:00:07]} 35. e5 {[%emt 0:00:42]} Kg8 {[%emt 0:00:26]} 36. Kh2 {[%emt 0:00:36]} Kf7 {[%emt 0:00:17]} (36... a6 $142 37. f4 Qc8 38. Qd5+ Kh8) 37. Qd5+ {[%emt 0:00:12]} Ke7 {[%emt 0:00:27]} 38. b4 {[%emt 0:00:36] Prevents Rc5.} a6 {[%emt 0:02:09]} 39. a3 {[%emt 0:00:57]} g5 {[%emt 0:00:33]} 40. hxg5 {[%emt 0:00:00]} hxg5 {[%emt 0:00:00]} 41. e6 {[%emt 0:08:38] Against Qd7} g4 {[%emt 0:02:51]} 42. Re2 {[%emt 0:05:17] Weighted Error Value: White=0.07 (flawless) /Black=0.49} 1-0

[Event "Prague Festival-Masters 2022"]
[Site "Prague"]
[Date "2022.06.10"]
[Round "3.4"]
[White "Vidit, Santosh Gujrathi"]
[Black "Vallejo Pons, Francisco"]
[Result "1/2-1/2"]
[ECO "B46"]
[WhiteElo "2723"]
[BlackElo "2704"]
[Annotator "TA"]
[PlyCount "67"]
[EventDate "2022.06.07"]
[EventType "tourn"]
[EventCountry "CZE"]
[SourceTitle "playchess.com"]
[Source "ChessBase"]
[SourceQuality "1"]
[TimeControl "40/5400+30:1800+30"]

{[%evp 16,67,20,14,13,17,16,22,18,30,24,13,27,0,0,0,16,11,36,29,46,46,43,45,46,45,46,46,46,37,47,42,41,20,20,19,19,19,19,0,23,0,19,6,22,20,18,18,22,0,20,0,21,0]} 1. e4 {[%emt 0:00:21]} c5 {[%emt 0:00:07]} 2. Nf3 {[%emt 0:00:13]} e6 {[%emt 0:00:06]} 3. d4 {[%emt 0:00:36]} cxd4 {[%emt 0:00:42]} 4. Nxd4 {[%emt 0:00:08]} Nc6 {[%emt 0:00:03]} 5. Nc3 {[%emt 0:00:24]} a6 {[%emt 0:00:05]} 6. Nxc6 {[%emt 0:03:21]} bxc6 {[%emt 0:00:08]} 7. Bd3 {[%emt 0:00:59]} d5 {[%emt 0:00:32]} 8. O-O {[%emt 0:00:16]} Nf6 {[%emt 0:00:12]} 9. Re1 {[%emt 0:16:26]} Be7 {[%emt 0:01:24] B46: Sicilian: Taimanov: 5 Nc3 a6.} 10. Bf4 {[%emt 0:01:36]} O-O {[%emt 0:08:41]} 11. Qf3 {[%emt 0:03:50]} a5 {[%emt 0:06:05]} 12. Na4 {[%emt 0:15:22]} Ba6 {[%emt 0:07:02] [#]} 13. b3 $146 {[%emt 0:01:30]} ({Predecessor:} 13. Qe2 Bxd3 14. cxd3 Nd7 15. Rac1 Nb6 16. Nc5 Re8 17. Qg4 Bf8 18. h4 e5 19. Be3 {1-0 (74) Popilski,G (2519)-Mishuchkov,N (2320) Pardubice 2015}) 13... Bb5 {[%emt 0:33:08]} 14. c4 {[%emt 0:06:44]} Bxa4 {[%emt 0:10:03]} 15. bxa4 {[%emt 0:02:31]} Bb4 {[%emt 0:00:03]} 16. Red1 {[%emt 0:01:32]} Qe7 {[%emt 0:00:32]} 17. Bg5 {[%emt 0:09:03] [#] aiming for e5.} h6 {[%emt 0:02:57]} 18. Bxf6 {[%emt 0:00:33]} Qxf6 {[%emt 0:00:07]} 19. Qxf6 {[%emt 0:00:18]} gxf6 {[%emt 0:00:03]} 20. cxd5 {[%emt 0:00:18]} cxd5 {[%emt 0:00:29]} 21. exd5 {[%emt 0:00:08]} exd5 {[%emt 0:01:22]} 22. Bb5 {[%emt 0:09:17]} Bc3 {[%emt 0:07:15]} 23. Rab1 {[%emt 0:00:08]} d4 {[%emt 0:00:49]} 24. Rd3 {[%emt 0:02:35]} Rfc8 {[%emt 0:00:59]} 25. Rg3+ {[%emt 0:03:13]} Kf8 {[%emt 0:01:25]} 26. Rh3 {[%emt 0:01:30]} Kg7 {[%emt 0:01:41]} 27. Rg3+ {[%emt 0:04:21]} Kf8 {[%emt 0:00:01]} 28. Rh3 {[%emt 0:02:03]} Kg7 {[%emt 0:00:12] The position is equal.} 29. Bd3 {[%emt 0:00:57]} Bb4 {[%emt 0:09:23]} 30. Rh4 {[%emt 0:00:57]} Rd8 {[%emt 0:03:11]} 31. Rg4+ {[%emt 0:00:59]} Kf8 {[%emt 0:00:41]} 32. Rh4 {[%emt 0:00:12]} Kg7 {[%emt 0:00:00]} 33. Rg4+ {[%emt 0:02:17]} Kf8 {[%emt 0:00:02]} 34. Rh4 {[%emt 0:01:11] Weighted Error Value: White=0.07 (flawless) /Black=0.04 (flawless)} 1/2-1/2

[Event "Prague Festival-Masters 2022"]
[Site "Prague"]
[Date "2022.06.10"]
[Round "3.5"]
[White "Salem, A.R. Saleh"]
[Black "Maghsoodloo, Parham"]
[Result "1/2-1/2"]
[ECO "C88"]
[WhiteElo "2690"]
[BlackElo "2699"]
[Annotator "TA"]
[PlyCount "70"]
[EventDate "2022.06.07"]
[EventType "tourn"]
[EventCountry "CZE"]
[SourceTitle "playchess.com"]
[Source "ChessBase"]
[SourceQuality "1"]
[TimeControl "40/5400+30:1800+30"]

{[%evp 15,70,26,33,33,37,32,56,58,66,55,49,43,52,52,46,42,51,51,43,38,47,41,52,47,54,25,45,32,33,41,62,55,54,62,55,31,62,56,44,44,46,39,48,0,0,0,0,0,0,0,0,0,0,0,0,0,0]} 1. e4 {[%emt 0:00:02]} e5 {[%emt 0:01:45]} 2. Nf3 {[%emt 0:00:06]} Nc6 {[%emt 0:00:04]} 3. Bb5 {[%emt 0:00:05]} a6 {[%emt 0:00:05]} 4. Ba4 {[%emt 0:00:04]} Nf6 {[%emt 0:00:05]} 5. O-O {[%emt 0:00:05]} b5 {[%emt 0:00:04]} 6. Bb3 {[%emt 0:00:05]} Bb7 {[%emt 0:00:04]} 7. Re1 {[%emt 0:00:30]} Be7 {[%emt 0:00:15]} 8. d3 {[%emt 0:00:49]} O-O {[%emt 0:01:52]} 9. Nbd2 {[%emt 0:05:00] C88: Closed Ruy Lopez: Anti-Marshall Systems.} Bc5 {[%emt 0:18:52]} 10. c3 {[%emt 0:06:09]} d6 {[%emt 0:03:42]} 11. Nf1 {[%emt 0:00:59] White is slightly better.} Ne7 {[%emt 0:00:11]} 12. Bg5 {[%emt 0:09:00]} Ng6 {[%emt 0:04:04]} 13. Nh4 {[%emt 0:03:33] [#]} Nxh4 $146 {[%emt 0:04:37]} ({Predecessor:} 13... Kh8 14. a4 h6 15. Nxg6+ fxg6 16. Be3 Nh5 17. Qd2 Bxe3 18. Nxe3 Kh7 19. f3 c5 20. d4 Qg5 21. Kh1 d5 22. Bxd5 Bxd5 23. exd5 exd4 24. cxd4 c4 25. axb5 axb5 {½-½ (24) Hogar,R (2049)-Gazen,L (1983) LSS email 2017}) 14. Bxh4 {[%emt 0:01:30]} h6 {[%emt 0:00:01]} 15. Ne3 {[%emt 0:19:52]} g5 {[%emt 0:03:46] [#] Strongly threatening ...Bxe3.} 16. Bg3 {[%emt 0:00:19]} Bxe3 {[%emt 0:00:31]} 17. Rxe3 {[%emt 0:00:39]} Kg7 {[%emt 0:02:53]} 18. a4 {[%emt 0:03:15]} Qe7 {[%emt 0:01:05]} 19. Re1 {[%emt 0:01:31]} c5 {[%emt 0:04:54]} 20. h4 {[%emt 0:04:18]} Bc6 {[%emt 0:03:16]} 21. d4 {[%emt 0:03:19][%cal Ob3d5]} (21. Bc2 {seems wilder.} bxa4 22. Bxa4 Bxa4 23. Rxa4 Rfb8 24. d4) 21... cxd4 {[%emt 0:31:25]} (21... Bxe4 $2 22. dxc5 dxc5 23. hxg5 hxg5 24. Qc1 $18) 22. cxd4 {[%emt 0:00:43]} bxa4 {[%emt 0:00:07]} (22... Bxe4 $2 23. hxg5 hxg5 24. axb5 $18) ({Don't do} 22... Nxe4 23. d5 Nxg3 24. dxc6 $16) 23. Bxa4 {[%emt 0:02:40]} Bxa4 {[%emt 0:00:06]} (23... Bxe4 $2 24. hxg5 hxg5 25. Qd2 $18 (25. f3 Nh5 $18)) 24. Rxa4 {[%emt 0:00:20]} Rfb8 {[%emt 0:00:12]} 25. Qe2 {[%emt 0:04:07]} Rb6 {[%emt 0:10:01]} 26. Ra5 {[%emt 0:01:28] [#] aiming for hxg5.} Nd7 {[%emt 0:02:42]} 27. hxg5 {[%emt 0:04:11]} hxg5 {[%emt 0:00:06]} 28. Rd1 {[%emt 0:00:03]} f6 {[%emt 0:02:52]} 29. Rd5 {[%emt 0:06:49]} (29. dxe5 $14 {is more appropriate.} dxe5 30. f3) 29... Nf8 $1 $11 {[%emt 0:00:51] The position is equal.} 30. dxe5 {[%emt 0:00:55]} dxe5 {[%emt 0:00:02]} 31. f3 {[%emt 0:06:57]} Rab8 {[%emt 0:00:55]} 32. Bf2 {[%emt 0:01:44]} Rxb2 {[%emt 0:00:19]} 33. Qxa6 {[%emt 0:00:01] Bc5 is the strong threat.} Rb1 {[%emt 0:00:28]} 34. Qf1 {[%emt 0:05:06]} Rxd1 {[%emt 0:01:13]} 35. Qxd1 {[%emt 0:00:07]} Rc8 {[%emt 0:00:13] Weighted Error Value: White=0.05 (flawless) /Black=0.06 (flawless)} 1/2-1/2

[Event "Prague Festival-Masters 2022"]
[Site "Prague"]
[Date "2022.06.11"]
[Round "4.1"]
[White "Nguyen, Thai Dai Van"]
[Black "Le, Quang Liem"]
[Result "1/2-1/2"]
[ECO "E11"]
[WhiteElo "2612"]
[BlackElo "2709"]
[Annotator "TA"]
[PlyCount "61"]
[EventDate "2022.06.07"]
[EventType "tourn"]
[EventCountry "CZE"]
[SourceTitle "playchess.com"]
[Source "ChessBase"]
[SourceQuality "1"]
[TimeControl "40/5400+30:1800+30"]

{[%evp 12,61,26,14,30,35,44,44,44,50,48,30,38,32,40,47,40,60,51,33,40,43,32,0,0,0,0,0,0,0,0,0,0,0,0,0,0,0,0,0,0,0,0,0,0,0,0,0,0,0,0,0]} 1. Nf3 {[%emt 0:00:02]} d5 {[%emt 0:00:16]} 2. d4 {[%emt 0:00:54]} Nf6 {[%emt 0:00:11]} 3. c4 {[%emt 0:00:09]} e6 {[%emt 0:00:08]} 4. g3 {[%emt 0:00:36]} Bb4+ {[%emt 0:00:13]} 5. Bd2 {[%emt 0:00:09]} a5 {[%emt 0:00:11]} 6. Bg2 {[%emt 0:00:22]} O-O {[%emt 0:00:10]} 7. Qc2 {[%emt 0:00:07]} c5 {[%emt 0:00:16] E11: Bogo-Indian.} 8. cxd5 {[%emt 0:02:21] 8.cxd5 is better than 8.dxc5.} cxd4 {[%emt 0:00:10]} 9. Nxd4 {[%emt 0:00:25]} Qb6 {[%emt 0:00:09] White is slightly better.} 10. e3 {[%emt 0:00:18]} exd5 {[%emt 0:00:14]} 11. O-O {[%emt 0:01:22]} Nc6 {[%emt 0:00:09]} 12. Nxc6 {[%emt 0:00:19]} bxc6 {[%emt 0:00:09]} 13. Rc1 {[%emt 0:00:11]} Rb8 {[%emt 0:01:12]} 14. Nc3 {[%emt 0:01:45]} h5 {[%emt 0:00:36][%cal Oh5h4]} 15. a3 {[%emt 0:01:09]} Be7 {[%emt 0:01:16]} 16. Na4 {[%emt 0:00:16][%csl LRb6,LRc6]} Qc7 {[%emt 0:01:11]} 17. Qxc6 {[%emt 0:00:19]} Qxc6 {[%emt 0:00:10] The position is equal.} 18. Rxc6 {[%emt 0:00:05]} Bd7 {[%emt 0:00:09]} 19. Rc7 {[%emt 0:00:07]} Bd8 $1 {[%emt 0:03:08]} 20. Rxd7 {[%emt 0:00:06]} Nxd7 {[%emt 0:00:07]} 21. Rd1 {[%emt 0:00:05]} Nb6 {[%emt 0:10:00]} 22. Nxb6 {[%emt 0:00:13] [#]} Rxb6 $146 {[%emt 0:00:33]} ({Predecessor:} 22... Bxb6 23. Bxd5 Rfd8 24. e4 Kh8 25. Bc3 Rbc8 26. Rd3 f5 27. exf5 Rc5 28. Be4 Rxd3 29. Bxd3 {½-½ (50) Makarian,R (2481)-Hovhannisyan,R (2632) Tornelo INT 2021}) 23. b4 {[%emt 0:00:35]} axb4 {[%emt 0:01:44]} 24. Bxb4 {[%emt 0:00:10]} Re8 {[%emt 0:00:08]} 25. Rxd5 {[%emt 0:00:09]} Be7 {[%emt 0:00:33]} 26. Re5 {[%emt 0:00:22]} Kf8 {[%emt 0:01:03]} 27. Rxh5 {[%emt 0:00:24][%cal Rh5h8] [#]} Bxb4 {[%emt 0:00:09]} 28. Rh8+ {[%emt 0:00:05]} Ke7 {[%emt 0:00:09]} 29. Rxe8+ {[%emt 0:00:05]} Kxe8 {[%emt 0:00:07]} 30. axb4 {[%emt 0:00:02][%cal Ob4b5]} Rxb4 {[%emt 0:00:11]} 31. h4 {[%emt 0:00:06] Weighted Error Value: White=0.03 (flawless) /Black=0.01 (flawless)} 1/2-1/2